fUSD/lending_fUSD_20260506
["ID","MTS","AMOUNT","RATE_DAILY","PERIOD"]
[421664682,1778035832000,-98655.81523408,0.00010615,2]
[421664729,1778035838000,-500.0,0.00010614,2]
[421664737,1778035838000,-156.40871289,0.00010614,2]
[421664733,1778035838000,-500.0,0.00010614,2]
[421664739,1778035838000,-500.0,0.00010614,2]
[421664720,1778035838000,-500.0,0.00010614,2]
[421664731,1778035838000,-500.0,0.00010614,2]
[421664735,1778035838000,-500.0,0.00010614,2]
[421664741,1778035838000,-500.0,0.00010614,2]
[421664725,1778035838000,-500.0,0.00010614,2]
[421664723,1778035838000,-500.0,0.00010614,2]
[421664721,1778035838000,-500.0,0.00010614,2]
[421664718,1778035838000,-500.0,0.00010614,2]
[421664727,1778035838000,-500.0,0.00010614,2]
[421664743,1778035838000,-500.0,0.00010614,2]
[421664757,1778035838000,-500.0,0.00010619,2]
[421664755,1778035838000,-150.0,0.00010615,2]
[421664745,1778035838000,-500.0,0.00010614,2]
[421664746,1778035838000,-500.0,0.00010614,2]
[421664748,1778035838000,-7302.5348604,0.00010615,2]
[421664780,1778035838000,-500.0,0.00010657,2]
[421664761,1778035838000,-150.0,0.00010637,2]
[421664759,1778035838000,-150.0,0.00010629,2]
[421664751,1778035838000,-380.52932165,0.00010615,2]
[421664763,1778035838000,-150.0,0.00010643,2]
[421664778,1778035838000,-500.0,0.00010657,2]
[421664776,1778035838000,-424.72432253,0.00010657,2]
[421664765,1778035838000,-150.0,0.00010652,2]
[421664753,1778035838000,-30302.30351242,0.00010615,2]
[421664713,1778035838000,-500.0,0.00010614,2]
[421664700,1778035838000,-500.0,0.00010614,2]
[421664711,1778035838000,-500.0,0.00010614,2]
[421664782,1778035838000,-168.34008311,0.00010657,2]
[421664687,1778035838000,-500.21514319,0.00010614,2]
[421664686,1778035838000,-500.17088465,0.00010614,2]
[421664690,1778035838000,-354.25328208,0.00010614,2]
[421664691,1778035838000,-145.74671792,0.00010614,2]
[421664688,1778035838000,-500.0,0.00010614,2]
[421664689,1778035838000,-500.0,0.00010614,2]
[421664693,1778035838000,-57.96449466,0.00010614,2]
[421664695,1778035838000,-500.0,0.00010614,2]
[421664697,1778035838000,-258.86083278,0.00010614,2]
[421664703,1778035838000,-500.0,0.00010614,2]
[421664702,1778035838000,-500.0,0.00010614,2]
[421664694,1778035838000,-500.0,0.00010614,2]
[421664696,1778035838000,-500.0,0.00010614,2]
[421664698,1778035838000,-500.0,0.00010614,2]
[421664699,1778035838000,-500.0,0.00010614,2]
[421664701,1778035838000,-500.0,0.00010614,2]
[421664704,1778035838000,-500.0,0.00010614,2]
[421664705,1778035838000,-500.0,0.00010614,2]
[421664714,1778035838000,-500.0,0.00010614,2]
[421664708,1778035838000,-500.0,0.00010614,2]
[421664706,1778035838000,-500.0,0.00010614,2]
[421664712,1778035838000,-500.0,0.00010614,2]
[421664709,1778035838000,-500.0,0.00010614,2]
[421664707,1778035838000,-500.0,0.00010614,2]
[421664716,1778035838000,-500.0,0.00010614,2]
[421664717,1778035838000,-500.0,0.00010614,2]
[421664715,1778035838000,-500.0,0.00010614,2]
[421664774,1778035838000,-500.0,0.00010657,2]
[421664692,1778035838000,-442.03550534,0.00010614,2]
[421664769,1778035838000,-150.0,0.00010652,2]
[421664846,1778035838000,-4000.0,0.00010779,2]
[421664847,1778035838000,-150.0,0.00010788,2]
[421664837,1778035838000,-150.0,0.00010726,2]
[421664839,1778035838000,-150.0,0.00010731,2]
[421664840,1778035838000,-150.0,0.00010745,2]
[421664844,1778035838000,-150.0,0.00010763,2]
[421664836,1778035838000,-150.0,0.00010716,2]
[421664843,1778035838000,-150.0,0.00010763,2]
[421664841,1778035838000,-150.0,0.00010752,2]
[421664834,1778035838000,-150.0,0.00010708,2]
[421664838,1778035838000,-150.0,0.00010726,2]
[421664842,1778035838000,-150.0,0.0001076,2]
[421664849,1778035838000,-150.0,0.0001079,2]
[421664835,1778035838000,-150.0,0.00010713,2]
[421664860,1778035838000,-150.0,0.00010848,2]
[421664859,1778035838000,-150.0,0.00010838,2]
[421664857,1778035838000,-150.0,0.00010833,2]
[421664853,1778035838000,-150.0,0.00010818,2]
[421664854,1778035838000,-150.0,0.00010818,2]
[421664850,1778035838000,-150.0,0.000108,2]
[421664851,1778035838000,-150.0,0.00010804,2]
[421664852,1778035838000,-102921.33,0.00010814,2]
[421664855,1778035838000,-150.0,0.00010818,2]
[421664856,1778035838000,-150.0,0.00010828,2]
[421664858,1778035838000,-150.0,0.00010837,2]
[421664861,1778035838000,-150.0,0.00010849,2]
[421664863,1778035838000,-150.0,0.00010862,2]
[421664785,1778035838000,-500.0,0.00010657,2]
[421664848,1778035838000,-150.0,0.00010789,2]
[421664845,1778035838000,-150.0,0.00010775,2]
[421664862,1778035838000,-548.972765,0.00010851,2]
[421664832,1778035838000,-711813.57596638,0.000107,2]
[421664833,1778035838000,-150.0,0.00010702,2]
[421664783,1778035838000,-500.0,0.00010657,2]
[421664767,1778035838000,-150.0,0.00010652,2]
[421664788,1778035838000,-500.0,0.00010657,2]
[421664789,1778035838000,-500.0,0.00010657,2]
[421664793,1778035838000,-225.70025198,0.00010657,2]
[421664795,1778035838000,-44105.0,0.00010658,2]
[421664792,1778035838000,-500.0,0.00010657,2]
[421664797,1778035838000,-150.0,0.00010658,2]
[421664802,1778035838000,-458.49,0.00010664,2]
[421664806,1778035838000,-2902.54,0.00010664,2]
[421664808,1778035838000,-150.0,0.00010671,2]
[421664799,1778035838000,-12059.40875206,0.00010664,2]
[421664803,1778035838000,-9999.99,0.00010664,2]
[421664772,1778035838000,-500.0,0.00010657,2]
[421664801,1778035838000,-12185.48124794,0.00010664,2]
[421664810,1778035838000,-150.0,0.00010672,2]
[421664829,1778035838000,-11442.4428316,0.00010698,2]
[421664824,1778035838000,-250.0,0.0001069,2]
[421664826,1778035838000,-1680.0,0.0001069,2]
[421664818,1778035838000,-675.57242217,0.00010688,2]
[421664816,1778035838000,-150.0,0.00010687,2]
[421664831,1778035838000,-535.64,0.00010698,2]
[421664828,1778035838000,-910834.68758085,0.00010698,2]
[421664814,1778035838000,-150.0,0.0001068,2]
[421664820,1778035838000,-150.0,0.00010689,2]
[421664812,1778035838000,-150.0,0.00010675,2]
[421664798,1778035838000,-150.0,0.00010664,2]
[421664822,1778035838000,-150.0,0.00010689,2]
[421664905,1778035839000,-150.0,0.00011019,2]
[421664902,1778035839000,-250.0,0.00011001,2]
[421664903,1778035839000,-150.0,0.00011004,2]
[421664897,1778035839000,-1392.71,0.00010989,2]
[421664901,1778035839000,-150.0,0.00010994,2]
[421664899,1778035839000,-242.82,0.00010989,2]
[421664898,1778035839000,-298.17,0.00010989,2]
[421664894,1778035839000,-1495.37,0.00010989,2]
[421664900,1778035839000,-209.86,0.00010989,2]
[421664891,1778035839000,-150.0,0.00010981,2]
[421664896,1778035839000,-177.43,0.00010989,2]
[421664895,1778035839000,-1210.54,0.00010989,2]
[421664908,1778035839000,-2000.0,0.0001103,2]
[421664906,1778035839000,-150.0,0.00011022,2]
[421664907,1778035839000,-150.0,0.00011023,2]
[421664910,1778035839000,-150.0,0.00011034,2]
[421664917,1778035839000,-150.0,0.00011067,2]
[421664911,1778035839000,-150.0,0.00011037,2]
[421664909,1778035839000,-4000.0,0.0001103,2]
[421664913,1778035839000,-150.0,0.00011052,2]
[421664912,1778035839000,-150.0,0.0001104,2]
[421664914,1778035839000,-150.0,0.00011054,2]
[421664916,1778035839000,-150.0,0.00011059,2]
[421664889,1778035839000,-150.0,0.00010973,2]
[421664915,1778035839000,-150.0,0.00011058,2]
[421664904,1778035839000,-150.0,0.00011008,2]
[421664888,1778035839000,-150.0,0.00010964,2]
[421664884,1778035839000,-150.0,0.00010948,2]
[421664887,1778035839000,-150.0,0.00010959,2]
[421664919,1778035839000,-164.88829841,0.00011073,2]
[421664872,1778035839000,-150.0,0.00010891,2]
[421664865,1778035839000,-503.2614295,0.00010873,2]
[421664867,1778035839000,-150.0,0.00010874,2]
[421664868,1778035839000,-150.0,0.00010874,2]
[421664869,1778035839000,-150.0,0.00010877,2]
[421664870,1778035839000,-6698.192283,0.00010877,2]
[421664864,1778035839000,-150.0,0.00010866,2]
[421664866,1778035839000,-150.0,0.00010874,2]
[421664871,1778035839000,-160.463918,0.00010877,2]
[421664874,1778035839000,-13354.28727196,0.000109,3]
[421664875,1778035839000,-150.0,0.00010905,2]
[421664873,1778035839000,-500.0,0.00010893,2]
[421664877,1778035839000,-150.0,0.00010911,2]
[421664879,1778035839000,-150.0,0.00010921,2]
[421664882,1778035839000,-150.0,0.00010935,2]
[421664876,1778035839000,-150.0,0.00010906,2]
[421664878,1778035839000,-150.0,0.00010911,2]
[421664880,1778035839000,-155.51,0.00010929,2]
[421664881,1778035839000,-150.0,0.00010929,2]
[421664883,1778035839000,-150.0,0.00010943,2]
[421664893,1778035839000,-150.0,0.00010985,2]
[421664892,1778035839000,-150.0,0.00010985,2]
[421664886,1778035839000,-150.0,0.00010957,2]
[421664885,1778035839000,-150.0,0.0001095,2]
[421664890,1778035839000,-150.0,0.00010979,2]
[421664918,1778035839000,-500.0,0.00011073,2]
[421664922,1778035839000,-168.19810832,0.00011073,2]
[421664978,1778035839000,-409.03726711,0.00011621,2]
[421664952,1778035839000,-1107.28,0.0001122,2]
[421664963,1778035839000,-14494.53932136,0.00011292,2]
[421664962,1778035839000,-2845.7,0.00011281,2]
[421664953,1778035839000,-1004.85002258,0.00011254,2]
[421664951,1778035839000,-507.15,0.0001122,2]
[421664954,1778035839000,-9999.99,0.00011281,2]
[421664961,1778035839000,-299.99,0.00011281,2]
[421664956,1778035839000,-9999.99,0.00011281,2]
[421664959,1778035839000,-999.99,0.00011281,2]
[421664955,1778035839000,-150.99,0.00011281,2]
[421664957,1778035839000,-24258.95,0.00011281,2]
[421664964,1778035839000,-259.24,0.00011293,2]
[421664966,1778035839000,-150.0,0.0001131,2]
[421664968,1778035839000,-150.0,0.00011505,2]
[421664967,1778035839000,-150.0,0.00011338,2]
[421664969,1778035839000,-1953.57,0.000116,2]
[421664971,1778035839000,-1000.0,0.00011621,2]
[421664974,1778035839000,-1000.0,0.00011621,2]
[421664972,1778035839000,-1000.0,0.00011621,2]
[421664973,1778035839000,-542.12948735,0.00011621,2]
[421664975,1778035839000,-1000.0,0.00011621,2]
[421664976,1778035839000,-1000.0,0.00011621,2]
[421664977,1778035839000,-1000.0,0.00011621,2]
[421664979,1778035839000,-1471.57,0.00011653,2]
[421664920,1778035839000,-500.0833123,0.00011073,2]
[421664950,1778035839000,-441.05,0.0001122,2]
[421664948,1778035839000,-567.7146405,0.00011167,2]
[421664965,1778035839000,-259.24,0.00011297,2]
[421664949,1778035839000,-150.0,0.00011171,2]
[421664921,1778035839000,-500.0,0.00011073,2]
[421664945,1778035839000,-14494.53932138,0.00011099,2]
[421664926,1778035839000,-500.0,0.00011073,2]
[421664924,1778035839000,-500.0,0.00011073,2]
[421664925,1778035839000,-170.11428287,0.00011073,2]
[421664923,1778035839000,-500.0,0.00011073,2]
[421664928,1778035839000,-501.11234018,0.00011073,2]
[421664927,1778035839000,-205.52907895,0.00011073,2]
[421664934,1778035839000,-150.0,0.00011081,2]
[421664932,1778035839000,-500.0,0.00011073,2]
[421664931,1778035839000,-500.0,0.00011073,2]
[421664936,1778035839000,-294.96184725,0.00011096,2]
[421664933,1778035839000,-500.0,0.00011073,2]
[421664929,1778035839000,-500.0,0.00011073,2]
[421664946,1778035839000,-14494.53932136,0.00011099,2]
[421664941,1778035839000,-150.0,0.00011096,2]
[421664935,1778035839000,-420.0,0.00011095,2]
[421664947,1778035839000,-255.0,0.00011135,2]
[421664944,1778035839000,-156.29791713,0.00011096,2]
[421664943,1778035839000,-293.59447112,0.00011096,2]
[421664942,1778035839000,-285.81179994,0.00011096,2]
[421664938,1778035839000,-152.88062369,0.00011096,2]
[421664939,1778035839000,-192.66192995,0.00011096,2]
[421664930,1778035839000,-166.75088647,0.00011073,2]
[421664937,1778035839000,-181.37420682,0.00011096,2]
[421664940,1778035839000,-151.37205083,0.00011096,2]
[421665016,1778035840000,-164.26479631,0.00012173,2]
[421665019,1778035840000,-565.0,0.00012203,2]
[421665018,1778035840000,-151948.6742518,0.00012193,2]
[421665020,1778035840000,-1000.0,0.00012221,2]
[421665023,1778035840000,-501.33595936,0.00012221,2]
[421665010,1778035840000,-1500.0,0.00012168,2]
[421665014,1778035840000,-1500.0,0.00012168,2]
[421665015,1778035840000,-1511.47657678,0.00012168,2]
[421665013,1778035840000,-501.82122547,0.00012168,2]
[421665007,1778035840000,-155.87585118,0.00012103,2]
[421665021,1778035840000,-1000.0,0.00012221,2]
[421665017,1778035840000,-151.0,0.0001219,2]
[421665022,1778035840000,-501.79416214,0.00012221,2]
[421665033,1778035840000,-300.0,0.00012348,2]
[421665025,1778035840000,-433.0,0.0001224,2]
[421665026,1778035840000,-2000.0,0.00012255,2]
[421665028,1778035840000,-181.46,0.00012329,2]
[421665027,1778035840000,-178.54,0.00012303,2]
[421665029,1778035840000,-300.0,0.00012348,2]
[421665030,1778035840000,-300.0,0.00012348,2]
[421665031,1778035840000,-300.0,0.00012348,2]
[421665032,1778035840000,-300.0,0.00012348,2]
[421665034,1778035840000,-300.0,0.00012348,2]
[421665035,1778035840000,-300.0,0.00012348,2]
[421665037,1778035840000,-300.0,0.00012348,2]
[421665012,1778035840000,-1500.0,0.00012168,2]
[421665024,1778035840000,-176.0,0.00012221,2]
[421665009,1778035840000,-500.0,0.00012118,2]
[421665039,1778035840000,-238.0,0.00012348,2]
[421665011,1778035840000,-1500.0,0.00012168,2]
[421664989,1778035840000,-151.0,0.00011675,2]
[421664990,1778035840000,-300.0,0.00011677,2]
[421664980,1778035840000,-150.0,0.00011671,2]
[421664986,1778035840000,-500.0,0.00011673,2]
[421664981,1778035840000,-500.0,0.00011673,2]
[421664985,1778035840000,-162.95636933,0.00011673,2]
[421664984,1778035840000,-411.70858061,0.00011673,2]
[421664982,1778035840000,-565.18715455,0.00011673,2]
[421664983,1778035840000,-500.0,0.00011673,2]
[421664988,1778035840000,-168.30086866,0.00011673,2]
[421664987,1778035840000,-500.0,0.00011673,2]
[421664992,1778035840000,-666.0,0.00011677,2]
[421665002,1778035840000,-500.0,0.00011941,2]
[421664993,1778035840000,-666.0,0.00011677,2]
[421664991,1778035840000,-300.0,0.00011677,2]
[421664996,1778035840000,-14494.53932136,0.0001168,2]
[421665001,1778035840000,-176.0,0.00011941,2]
[421664994,1778035840000,-597300.3625123,0.00011678,2]
[421664999,1778035840000,-2351.0,0.00011759,2]
[421664995,1778035840000,-15602.784457,0.00011678,2]
[421665000,1778035840000,-155.51,0.00011769,2]
[421664997,1778035840000,-300.0,0.00011722,2]
[421664998,1778035840000,-673.90630449,0.00011722,2]
[421665004,1778035840000,-14494.53932136,0.00012068,2]
[421665003,1778035840000,-156.073,0.00011998,2]
[421665005,1778035840000,-11742.03605366,0.00012073,2]
[421665008,1778035840000,-3567.23845487,0.00012103,2]
[421665006,1778035840000,-619.22006424,0.00012103,2]
[421665043,1778035840000,-166.66,0.00012482,2]
[421665159,1778035840000,-150.0,0.00013481,2]
[421665049,1778035840000,-400.0,0.00012601,2]
[421665110,1778035840000,-176.0,0.00012848,2]
[421665112,1778035840000,-4472.46,0.0001288,2]
[421665114,1778035840000,-4472.46,0.0001288,2]
[421665116,1778035840000,-166.66,0.00012894,2]
[421665122,1778035840000,-1471.57,0.00012948,2]
[421665118,1778035840000,-675.57242217,0.00012925,2]
[421665120,1778035840000,-3292.0,0.00012935,2]
[421665126,1778035840000,-151.0,0.00013071,2]
[421665124,1778035840000,-151.0,0.00013071,2]
[421665132,1778035840000,-151.0,0.00013223,2]
[421665128,1778035840000,-57415.70963574,0.00013223,2]
[421665134,1778035840000,-166.702792,0.00013223,2]
[421665107,1778035840000,-151.0,0.00012848,2]
[421665136,1778035840000,-166.702792,0.00013223,2]
[421665149,1778035840000,-155.51,0.00013451,2]
[421665151,1778035840000,-1255.16143697,0.0001347,2]
[421665153,1778035840000,-2000.0,0.00013481,2]
[421665143,1778035840000,-2000.0,0.00013316,2]
[421665155,1778035840000,-150.0,0.00013481,2]
[421665147,1778035840000,-736.0,0.00013446,2]
[421665140,1778035840000,-14494.53932136,0.00013233,2]
[421665141,1778035840000,-166.66,0.00013306,2]
[421665145,1778035840000,-420.0,0.0001335,2]
[421665157,1778035840000,-150.0,0.00013481,2]
[421665161,1778035840000,-209.0,0.00013481,2]
[421665041,1778035840000,-14494.53932136,0.00012457,2]
[421665138,1778035840000,-166.702792,0.00013223,2]
[421665108,1778035840000,-176.0,0.00012848,2]
[421665130,1778035840000,-151.0,0.00013223,2]
[421665101,1778035840000,-928.723604,0.00012848,2]
[421665105,1778035840000,-151.0,0.00012848,2]
[421665054,1778035840000,-400.0,0.00012601,2]
[421665051,1778035840000,-400.0,0.00012601,2]
[421665045,1778035840000,-400.0,0.00012601,2]
[421665055,1778035840000,-400.0,0.00012601,2]
[421665058,1778035840000,-400.0,0.00012601,2]
[421665060,1778035840000,-400.0,0.00012601,2]
[421665062,1778035840000,-400.0,0.00012601,2]
[421665063,1778035840000,-315.0,0.00012601,2]
[421665067,1778035840000,-1511.35710305,0.00012716,2]
[421665072,1778035840000,-1153.54726958,0.00012716,2]
[421665069,1778035840000,-1644.4672729,0.00012716,2]
[421665074,1778035840000,-2007.37555556,0.00012716,2]
[421665076,1778035840000,-349.24374519,0.00012768,2]
[421665048,1778035840000,-400.0,0.00012601,2]
[421665103,1778035840000,-928.723604,0.00012848,2]
[421665078,1778035840000,-1500.0,0.00012768,2]
[421665093,1778035840000,-488.000693,0.00012848,2]
[421665091,1778035840000,-488.000693,0.00012848,2]
[421665097,1778035840000,-928.723604,0.00012848,2]
[421665095,1778035840000,-488.000693,0.00012848,2]
[421665099,1778035840000,-928.723604,0.00012848,2]
[421665085,1778035840000,-151.0,0.00012848,2]
[421665087,1778035840000,-57415.70963574,0.00012848,2]
[421665082,1778035840000,-151.0,0.00012848,2]
[421665080,1778035840000,-14494.53932136,0.00012845,2]
[421665065,1778035840000,-155.51,0.0001261,2]
[421665089,1778035840000,-488.000693,0.00012848,2]
[421665240,1778035841000,-502.80341295,0.00013698,2]
[421665260,1778035841000,-500.0,0.00013698,2]
[421665242,1778035841000,-551.68,0.00013698,2]
[421665254,1778035841000,-500.0,0.00013698,2]
[421665238,1778035841000,-500.0,0.00013698,2]
[421665221,1778035841000,-500.0,0.00013698,2]
[421665234,1778035841000,-500.0,0.00013698,2]
[421665220,1778035841000,-500.0,0.00013698,2]
[421665230,1778035841000,-500.0,0.00013698,2]
[421665232,1778035841000,-500.0,0.00013698,2]
[421665246,1778035841000,-551.68,0.00013698,2]
[421665236,1778035841000,-500.0,0.00013698,2]
[421665250,1778035841000,-500.0,0.00013698,2]
[421665268,1778035841000,-500.0,0.00013698,2]
[421665252,1778035841000,-500.0,0.00013698,2]
[421665256,1778035841000,-500.0,0.00013698,2]
[421665248,1778035841000,-551.68,0.00013698,2]
[421665258,1778035841000,-500.0,0.00013698,2]
[421665262,1778035841000,-500.0,0.00013698,2]
[421665278,1778035841000,-507.60153285,0.00013698,2]
[421665270,1778035841000,-500.0,0.00013698,2]
[421665272,1778035841000,-500.0,0.00013698,2]
[421665274,1778035841000,-500.0,0.00013698,2]
[421665276,1778035841000,-302.54889419,0.00013698,2]
[421665286,1778035841000,-500.0,0.00013698,2]
[421665288,1778035841000,-500.0,0.00013698,2]
[421665244,1778035841000,-551.68,0.00013698,2]
[421665228,1778035841000,-500.0,0.00013698,2]
[421665166,1778035841000,-14494.53932136,0.00013622,2]
[421665224,1778035841000,-500.0,0.00013698,2]
[421665168,1778035841000,-500.0,0.00013698,2]
[421665164,1778035841000,-57415.70963574,0.00013598,2]
[421665171,1778035841000,-500.0,0.00013698,2]
[421665181,1778035841000,-500.0,0.00013698,2]
[421665173,1778035841000,-199.75341924,0.00013698,2]
[421665177,1778035841000,-500.0,0.00013698,2]
[421665179,1778035841000,-500.0,0.00013698,2]
[421665175,1778035841000,-500.0,0.00013698,2]
[421665169,1778035841000,-500.0,0.00013698,2]
[421665183,1778035841000,-500.0,0.00013698,2]
[421665186,1778035841000,-500.0,0.00013698,2]
[421665188,1778035841000,-500.0,0.00013698,2]
[421665194,1778035841000,-500.0,0.00013698,2]
[421665192,1778035841000,-500.0,0.00013698,2]
[421665198,1778035841000,-500.0,0.00013698,2]
[421665196,1778035841000,-500.0,0.00013698,2]
[421665190,1778035841000,-500.0,0.00013698,2]
[421665206,1778035841000,-500.0,0.00013698,2]
[421665204,1778035841000,-500.0,0.00013698,2]
[421665291,1778035841000,-500.0,0.00013698,2]
[421665210,1778035841000,-500.0,0.00013698,2]
[421665200,1778035841000,-500.0,0.00013698,2]
[421665214,1778035841000,-500.0,0.00013698,2]
[421665208,1778035841000,-500.0,0.00013698,2]
[421665212,1778035841000,-500.0,0.00013698,2]
[421665216,1778035841000,-500.0,0.00013698,2]
[421665226,1778035841000,-500.0,0.00013698,2]
[421665218,1778035841000,-500.0,0.00013698,2]
[421665280,1778035841000,-500.0,0.00013698,2]
[421665202,1778035841000,-500.0,0.00013698,2]
[421665282,1778035841000,-500.0,0.00013698,2]
[421665351,1778035841000,-500.0,0.00013698,2]
[421665348,1778035841000,-500.0,0.00013698,2]
[421665340,1778035841000,-504.36314332,0.00013698,2]
[421665337,1778035841000,-500.0,0.00013698,2]
[421665355,1778035841000,-500.0,0.00013698,2]
[421665357,1778035841000,-500.0,0.00013698,2]
[421665371,1778035841000,-500.0,0.00013698,2]
[421665367,1778035841000,-500.0,0.00013698,2]
[421665369,1778035841000,-500.0,0.00013698,2]
[421665361,1778035841000,-500.0,0.00013698,2]
[421665363,1778035841000,-500.0,0.00013698,2]
[421665374,1778035841000,-500.0,0.00013698,2]
[421665373,1778035841000,-500.0,0.00013698,2]
[421665359,1778035841000,-500.0,0.00013698,2]
[421665377,1778035841000,-500.0,0.00013698,2]
[421665365,1778035841000,-500.0,0.00013698,2]
[421665378,1778035841000,-500.0,0.00013698,2]
[421665381,1778035841000,-500.0,0.00013698,2]
[421665383,1778035841000,-500.0,0.00013698,2]
[421665393,1778035841000,-500.0,0.00013698,2]
[421665395,1778035841000,-500.0,0.00013698,2]
[421665397,1778035841000,-500.0,0.00013698,2]
[421665399,1778035841000,-500.0,0.00013698,2]
[421665387,1778035841000,-500.0,0.00013698,2]
[421665389,1778035841000,-500.0,0.00013698,2]
[421665385,1778035841000,-500.0,0.00013698,2]
[421665284,1778035841000,-500.0,0.00013698,2]
[421665342,1778035841000,-500.0,0.00013698,2]
[421665352,1778035841000,-500.0,0.00013698,2]
[421665390,1778035841000,-500.0,0.00013698,2]
[421665333,1778035841000,-500.0,0.00013698,2]
[421665294,1778035841000,-632.75,0.00013698,2]
[421665296,1778035841000,-632.75,0.00013698,2]
[421665298,1778035841000,-632.75,0.00013698,2]
[421665300,1778035841000,-632.75,0.00013698,2]
[421665314,1778035841000,-632.75,0.00013698,2]
[421665313,1778035841000,-632.75,0.00013698,2]
[421665293,1778035841000,-524.88358834,0.00013698,2]
[421665303,1778035841000,-632.75,0.00013698,2]
[421665335,1778035841000,-500.0,0.00013698,2]
[421665306,1778035841000,-632.75,0.00013698,2]
[421665317,1778035841000,-632.75,0.00013698,2]
[421665309,1778035841000,-632.75,0.00013698,2]
[421665311,1778035841000,-632.75,0.00013698,2]
[421665320,1778035841000,-500.0,0.00013698,2]
[421665304,1778035841000,-632.75,0.00013698,2]
[421665328,1778035841000,-500.0,0.00013698,2]
[421665346,1778035841000,-500.0,0.00013698,2]
[421665324,1778035841000,-500.0,0.00013698,2]
[421665344,1778035841000,-500.0,0.00013698,2]
[421665331,1778035841000,-500.0,0.00013698,2]
[421665325,1778035841000,-500.0,0.00013698,2]
[421665319,1778035841000,-632.75,0.00013698,2]
[421665327,1778035841000,-500.0,0.00013698,2]
[421665321,1778035841000,-500.0,0.00013698,2]
[421665322,1778035841000,-500.0,0.00013698,2]
[421665318,1778035841000,-632.75,0.00013698,2]
[421665323,1778035841000,-500.0,0.00013698,2]
[421665326,1778035841000,-500.0,0.00013698,2]
[421665329,1778035841000,-500.0,0.00013698,2]
[421665474,1778035842000,-871.36,0.00013698,2]
[421665483,1778035842000,-166.66,0.00013699,2]
[421665478,1778035842000,-247.77,0.00013699,2]
[421665477,1778035842000,-529.31246977,0.00013698,2]
[421665473,1778035842000,-871.36,0.00013698,2]
[421665469,1778035842000,-871.36,0.00013698,2]
[421665460,1778035842000,-871.36,0.00013698,2]
[421665458,1778035842000,-871.36,0.00013698,2]
[421665456,1778035842000,-871.36,0.00013698,2]
[421665454,1778035842000,-871.36,0.00013698,2]
[421665461,1778035842000,-871.36,0.00013698,2]
[421665494,1778035842000,-188.558264,0.00013699,2]
[421665511,1778035842000,-150.0,0.00013734,2]
[421665490,1778035842000,-188.558264,0.00013699,2]
[421665484,1778035842000,-14187.29,0.00013699,2]
[421665489,1778035842000,-2500.0,0.00013699,2]
[421665493,1778035842000,-188.558264,0.00013699,2]
[421665487,1778035842000,-718.9,0.00013699,2]
[421665497,1778035842000,-188.558264,0.00013699,2]
[421665499,1778035842000,-770.89,0.00013699,2]
[421665503,1778035842000,-166.66,0.00013718,2]
[421665501,1778035842000,-352.06227604,0.00013699,2]
[421665513,1778035842000,-150.0,0.00013734,2]